bitfinex-derivatives/quotes_BTCF0:USTF0_20240905
["timestamp","ask_amount","ask_price","bid_price","bid_amount"]
[1725517860008,0.12,56897.0,56895.0,0.061519]
[1725517861713,0.12,56897.0,56895.0,0.062519]
[1725517863310,0.12,56897.0,56896.0,0.301518]
[1725517864513,0.24026365,56900.0,56895.0,0.001]
[1725517864816,0.08026365,56900.0,56899.0,0.3608]
[1725517866820,0.08026365,56900.0,56899.0,0.3618]
[1725517867718,0.08026365,56900.0,56899.0,0.663315]
[1725517868420,0.00026365,56900.0,56899.0,0.663315]
[1725517868614,0.08026365,56900.0,56899.0,0.663315]
[1725517869019,0.08026365,56900.0,56899.0,0.423315]
[1725517869229,0.08026365,56900.0,56899.0,0.3618]
[1725517875133,0.08026365,56900.0,56899.0,0.423315]
[1725517875516,0.061497,56916.0,56899.0,1.48904]
[1725517875729,0.4308,56914.0,56909.0,0.24]
[1725517875932,0.24,56911.0,56908.0,0.3608]
[1725517876121,0.35,56911.0,56908.0,0.3608]
[1725517876530,0.061504,56909.0,56908.0,0.3608]
[1725517876726,0.13,56909.0,56908.0,0.3608]
[1725517877025,0.129,56909.0,56908.0,0.3608]
[1725517878215,0.129,56909.0,56908.0,0.3618]
[1725517878825,0.129,56909.0,56908.0,0.663305]
[1725517883529,0.129,56909.0,56908.0,0.662305]
[1725517884335,0.129,56909.0,56908.0,0.663305]
[1725517884819,0.06302436,56918.0,56908.0,0.6018]
[1725517885019,0.12,56918.0,56914.0,0.6008]
[1725517886832,0.12,56918.0,56914.0,0.6018]
[1725517889930,0.12,56918.0,56915.0,0.0591]
[1725517890731,0.12,56918.0,56914.0,0.3618]
[1725517890923,0.061498,56915.0,56914.0,0.3618]
[1725517891229,0.181498,56915.0,56914.0,0.3618]
[1725517892632,0.180498,56915.0,56914.0,0.3608]
[1725517893319,0.180498,56915.0,56914.0,0.3618]
[1725517893823,1.547618,56915.0,56914.0,0.3618]
[1725517894134,1.547618,56915.0,56879.0,0.061536]
[1725517894135,0.08814,56913.0,56890.0,0.3608]
[1725517894328,0.301524,56891.0,56890.0,0.3608]
[1725517894623,0.48455051,56891.0,56890.0,0.3608]
[1725517894825,0.061531,56885.0,56883.0,0.3608]
[1725517895023,0.381531,56885.0,56883.0,0.3608]
[1725517895224,0.06302651,56884.0,56883.0,0.3608]
[1725517895438,0.18302651,56884.0,56883.0,0.3608]
[1725517895637,0.17602651,56884.0,56883.0,0.3608]
[1725517896328,0.12,56884.0,56883.0,0.3618]
[1725517896533,0.36,56884.0,56883.0,0.3618]
[1725517896927,0.36,56884.0,56883.0,0.3608]
[1725517897128,0.12,56884.0,56883.0,0.3618]
[1725517897521,0.00026365,56890.0,56889.0,0.061526]
[1725517897740,0.00026365,56890.0,56889.0,0.662326]
[1725517898128,0.00026365,56890.0,56889.0,0.422326]
[1725517898529,0.00026365,56890.0,56889.0,0.662326]
[1725517898931,0.00926365,56890.0,56889.0,0.663326]
[1725517901935,0.24926365,56890.0,56889.0,0.3618]
[1725517902133,0.00926365,56890.0,56889.0,0.3618]
[1725517903139,0.24926365,56890.0,56889.0,0.3618]
[1725517903946,0.43078865,56890.0,56889.0,0.3618]
[1725517904237,0.43078865,56890.0,56889.0,0.001]
[1725517904632,1.55810865,56890.0,56889.0,0.001]
[1725517904829,1.62116835,56890.0,56889.0,0.001]
[1725517905032,0.061531,56884.0,56883.0,0.3608]
[1725517905238,0.411531,56884.0,56883.0,0.3608]
[1725517905431,1.538931,56884.0,56883.0,0.3608]
[1725517906331,0.411531,56884.0,56883.0,0.3608]
[1725517906537,0.938931,56884.0,56883.0,0.3618]
[1725517906731,0.952931,56884.0,56883.0,0.3618]
[1725517906937,0.185531,56884.0,56883.0,0.3618]
[1725517907531,0.425531,56884.0,56883.0,0.3618]
[1725517907838,0.364,56884.0,56883.0,0.3618]
[1725517908358,0.425531,56884.0,56883.0,0.3618]
[1725517909435,0.48859145,56884.0,56883.0,0.3618]
[1725517910244,1.312931,56884.0,56883.0,0.001]
[1725517911342,1.374462,56884.0,56883.0,0.001]
[1725517911833,1.374462,56884.0,56878.0,0.00026365]
[1725517911834,0.123074,56879.0,56878.0,0.00026365]
[1725517912140,0.853874,56879.0,56878.0,0.00026365]
[1725517912734,1.981314,56879.0,56878.0,0.00026365]
[1725517912939,0.061549,56868.0,56864.0,0.3608]
[1725517913133,0.181549,56868.0,56864.0,0.3608]
[1725517913336,0.180549,56868.0,56864.0,0.3608]
[1725517913546,0.061552,56866.0,56864.0,0.3608]
[1725517913846,0.301552,56865.0,56864.0,0.3608]
[1725517914033,0.061556,56861.0,56860.0,0.0636]
[1725517914235,0.061557,56860.0,56859.0,0.00026365]
[1725517914435,0.061557,56860.0,56849.0,0.4244]
[1725517914436,0.061568,56851.0,56849.0,0.4244]
[1725517914635,0.301568,56850.0,56849.0,0.4244]
[1725517914843,0.061572,56847.0,56838.0,0.0564]
[1725517915044,0.24,56839.0,56838.0,0.11798]
[1725517915243,0.24,56839.0,56836.0,0.0636]
[1725517915437,0.07,56839.0,56836.0,0.0636]
[1725517915642,0.07,56839.0,56837.0,0.061582]
[1725517916043,0.306,56839.0,56837.0,0.061582]
[1725517916949,0.309,56839.0,56837.0,0.061582]
[1725517917345,0.314,56839.0,56837.0,0.062582]
[1725517917852,0.314,56839.0,56837.0,0.001]
[1725517919649,0.314,56839.0,56838.0,0.24]
[1725517919650,0.008,56839.0,56838.0,0.24]
[1725517920349,0.00026391,56843.0,56838.0,1.7286]
[1725517920555,0.3608,56862.0,56842.0,0.6008]
[1725517920753,0.3608,56862.0,56856.0,0.3608]
[1725517920754,0.4708,56862.0,56856.0,0.3608]
[1725517920948,0.24,56859.0,56856.0,0.3608]
[1725517921441,0.6008,56862.0,56856.0,0.3608]
[1725517921644,0.12,56862.0,56861.0,0.6008]
[1725517922042,0.00026391,56863.0,56862.0,0.061555]
[1725517922239,0.00026391,56863.0,56861.0,0.4256]
[1725517922240,0.02026391,56863.0,56861.0,0.3608]
[1725517923746,0.02026391,56863.0,56861.0,0.3598]
[1725517924052,0.03426391,56863.0,56861.0,0.3608]
[1725517924448,0.04326391,56863.0,56861.0,0.3618]
[1725517924651,0.04326391,56863.0,56861.0,0.423356]
[1725517925343,0.02326391,56863.0,56861.0,0.423356]
[1725517925748,0.02326391,56863.0,56862.0,0.061555]
[1725517926144,0.02626391,56863.0,56862.0,0.061555]
[1725517926750,0.00126391,56863.0,56862.0,0.061555]
[1725517927547,0.00226391,56863.0,56862.0,0.062555]
[1725517928143,0.00526391,56863.0,56862.0,0.062555]
[1725517928347,0.00526391,56863.0,56862.0,0.123455]
[1725517929856,0.00626391,56863.0,56862.0,0.123455]
[1725517930055,0.00626391,56863.0,56862.0,0.124455]
[1725517930359,0.00526391,56863.0,56862.0,0.123455]
[1725517930565,0.02526391,56863.0,56862.0,0.12349735]
[1725517931852,0.02526391,56863.0,56862.0,0.65109735]
[1725517932050,0.02526391,56863.0,56862.0,0.12349735]
[1725517935963,0.3291,56874.0,56873.0,0.061543]
[1725517936155,0.13,56874.0,56871.0,0.3608]
[1725517936355,0.13,56874.0,56872.0,0.061544]
[1725517936855,0.13,56874.0,56873.0,0.361543]
[1725517937063,0.13,56874.0,56873.0,0.3]
[1725517937064,0.08,56874.0,56873.0,0.3]
[1725517937261,0.08,56874.0,56873.0,0.361543]
[1725517937757,0.091,56874.0,56873.0,0.361543]
[1725517939071,0.091,56874.0,56873.0,0.362543]
[1725517939771,0.08,56874.0,56873.0,0.362543]
[1725517940067,0.087,56874.0,56873.0,0.363543]
[1725517942076,0.087,56874.0,56873.0,0.303543]
[1725517946072,0.007,56874.0,56873.0,1.492566]
[1725517947477,0.00026391,56879.0,56878.0,0.061538]
[1725517947667,0.00026391,56879.0,56878.0,0.662338]
[1725517948470,0.00026391,56879.0,56878.0,0.422338]
[1725517948864,0.08026391,56879.0,56878.0,0.422338]
[1725517949983,0.08126391,56879.0,56878.0,0.423338]
[1725517950669,0.08126391,56879.0,56878.0,0.422338]
[1725517950975,0.08126391,56879.0,56878.0,0.423338]
[1725517951365,0.08026391,56879.0,56878.0,0.485538]
[1725517951570,0.08526391,56879.0,56878.0,0.486538]
[1725517952068,0.3291,56896.0,56878.0,0.486538]
[1725517952069,0.5489,56901.0,56882.0,0.061533]
[1725517952270,0.11248001,56901.0,56896.0,0.24]
[1725517952469,0.17304604,56901.0,56896.0,0.24]
[1725517952677,0.11,56901.0,56897.0,0.061517]
[1725517952877,0.11,56901.0,56899.0,0.24]
[1725517953081,0.3608,56902.0,56899.0,0.24]
[1725517953580,0.0599,56905.0,56901.0,0.422313]
[1725517953776,0.05394499,56904.0,56903.0,0.061511]
[1725517954075,0.12394499,56904.0,56903.0,0.061511]
[1725517954377,0.07,56904.0,56903.0,0.061511]
[1725517954582,0.88048001,56915.0,56902.0,0.24]
[1725517954583,0.24,56913.0,56905.0,0.061509]
[1725517954874,0.05394206,56912.0,56906.0,0.3608]
[1725517955075,0.12,56912.0,56906.0,0.3608]
[1725517955272,0.12,56912.0,56906.0,0.662307]
[1725517955678,0.0604,56913.0,56910.0,0.24]
[1725517956175,0.1304,56913.0,56910.0,0.24]
[1725517956368,0.0604,56913.0,56910.0,0.24]
[1725517956872,0.1824,56913.0,56907.0,0.24]
[1725517957082,0.24542856,56913.0,56907.0,0.301506]
[1725517957585,0.24542856,56913.0,56911.0,0.3608]
[1725517957783,0.1824,56913.0,56911.0,0.3608]
[1725517958682,0.1824,56913.0,56912.0,0.061501]
[1725517958877,0.17593358,56913.0,56912.0,0.061501]
[1725517959078,0.122,56913.0,56912.0,0.061501]
[1725517959977,0.002,56913.0,56912.0,0.061501]
[1725517960285,0.002,56913.0,56911.0,0.3628]
[1725517960478,0.002,56913.0,56912.0,0.002]
[1725517961884,0.002,56913.0,56912.0,0.3628]
[1725517962683,0.002,56913.0,56912.0,0.424301]
[1725517963478,0.002,56913.0,56912.0,0.423301]
[1725517963684,0.061495,56918.0,56913.0,0.061499]
[1725517963887,0.171495,56918.0,56917.0,0.3608]
[1725517966084,0.173495,56918.0,56917.0,0.3608]
[1725517966492,0.173495,56918.0,56917.0,0.3618]
[1725517966787,0.173495,56918.0,56917.0,0.3628]
[1725517967676,1.300575,56918.0,56917.0,0.002]
[1725517973490,0.173495,56918.0,56917.0,0.002]
[1725517975395,0.112,56918.0,56917.0,0.002]
[1725517975586,0.112,56918.0,56917.0,0.063496]
[1725517981404,0.16593328,56918.0,56917.0,0.424296]
[1725517982103,0.112,56918.0,56917.0,0.424296]
[1725517983912,0.112,56918.0,56917.0,0.063496]
[1725517984120,0.413495,56918.0,56917.0,0.002]
[1725517984304,0.47651536,56918.0,56917.0,0.002]
[1725517984610,1.60359536,56918.0,56917.0,0.002]
[1725517987007,1.05753444,56918.0,56917.0,0.002]
[1725517987215,1.65753444,56918.0,56917.0,0.002]
[1725517987407,1.05753444,56918.0,56917.0,0.002]
[1725517988008,0.29045444,56918.0,56917.0,0.002]
[1725517988210,0.22743408,56918.0,56917.0,0.002]
[1725517988406,0.46743408,56918.0,56917.0,0.002]
[1725517988615,0.53045444,56918.0,56917.0,0.002]
[1725517989017,0.53045444,56918.0,56904.0,0.3608]
[1725517989018,1.59603944,56918.0,56904.0,0.3608]
[1725517989206,0.24,56908.0,56904.0,0.3608]
[1725517989408,0.123012,56907.0,56904.0,0.3608]
[1725517989710,0.29603236,56907.0,56904.0,0.3608]
[1725517989918,1.36172636,56907.0,56904.0,0.3608]
[1725517991017,1.36372636,56907.0,56904.0,0.3608]
[1725517991220,0.76372636,56907.0,56904.0,0.3608]
[1725517991524,1.36272636,56907.0,56904.0,0.3608]
[1725517992120,1.36372636,56907.0,56906.0,0.00126366]
[1725517994716,0.06602036,56907.0,56906.0,0.06277166]
[1725517994922,0.0569451,56907.0,56906.0,0.42357166]
[1725517995415,0.1669451,56907.0,56906.0,0.42357166]
[1725517995610,0.22996546,56907.0,56906.0,0.42357166]
[1725517996625,0.1669451,56907.0,56906.0,0.42357166]
[1725517996920,0.22996546,56907.0,56906.0,0.42357166]
[1725517997223,0.17602036,56907.0,56906.0,0.42357166]
[1725517998718,0.113,56907.0,56906.0,0.42357166]
[1725518000725,0.113,56907.0,56906.0,0.36206366]
[1725518000924,0.17602036,56907.0,56906.0,0.36206366]
[1725518001128,0.23752636,56907.0,56906.0,0.36206366]
[1725518001821,0.29903236,56907.0,56906.0,0.00126366]
[1725518002324,1.42623236,56907.0,56906.0,0.00126366]
[1725518004928,0.061517,56897.0,56896.0,0.0674]
[1725518005129,0.061523,56892.0,56888.0,0.3608]
[1725518005430,0.061525,56890.0,56889.0,0.065]
[1725518005726,0.411525,56890.0,56889.0,0.065]
[1725518006029,0.061526,56889.0,56888.0,0.3608]
[1725518006220,0.25354636,56889.0,56888.0,0.3608]
[1725518006427,0.06153,56885.0,56884.0,0.00026366]
[1725518006731,0.41053,56885.0,56884.0,0.00026366]
[1725518007031,0.47355036,56885.0,56884.0,0.00026366]
[1725518007421,0.47255036,56885.0,56884.0,0.00026366]
[1725518007624,0.40953,56885.0,56884.0,0.00026366]
[1725518008329,0.41253,56885.0,56884.0,0.00126366]
[1725518008830,0.47559041,56885.0,56884.0,0.00126366]
[1725518009229,0.47559041,56885.0,56884.0,0.00226366]
[1725518009230,0.48959041,56885.0,56884.0,0.00226366]
[1725518009831,0.24959041,56885.0,56884.0,0.00226366]
[1725518010326,0.18653,56885.0,56884.0,0.00226366]
[1725518010627,0.128,56885.0,56884.0,0.36306366]
[1725518010932,0.128,56885.0,56884.0,0.42459466]
[1725518011829,0.018,56885.0,56884.0,0.42459466]
[1725518012039,0.06305469,56894.0,56893.0,0.061522]
[1725518012334,0.12,56894.0,56893.0,0.061522]
[1725518013133,0.17395384,56894.0,56893.0,0.061522]
[1725518013524,0.89555384,56894.0,56873.0,0.3608]
[1725518013725,0.24,56874.0,56873.0,0.3608]
[1725518014032,0.24,56874.0,56873.0,0.36955094]
[1725518014237,0.239,56874.0,56873.0,0.36955094]
[1725518014830,0.239,56874.0,56873.0,0.37655094]
[1725518015034,0.359,56874.0,56873.0,0.37655094]
[1725518015233,0.358,56874.0,56873.0,0.36955094]
[1725518015428,0.365,56874.0,56873.0,0.37055094]
[1725518016134,0.366,56874.0,56873.0,0.37155094]
[1725518017325,0.366,56874.0,56873.0,0.3628]
[1725518017631,0.366,56874.0,56868.0,0.00026366]
[1725518017823,0.24,56870.0,56868.0,0.00026366]
[1725518018029,0.37,56870.0,56868.0,0.00026366]
[1725518018834,0.061548,56869.0,56868.0,0.00126366]
[1725518019028,0.191548,56869.0,56868.0,0.00126366]
[1725518019432,0.191548,56869.0,56868.0,0.00026366]
[1725518019628,0.061554,56863.0,56862.0,0.36084235]
[1725518019829,0.421554,56863.0,56862.0,0.36084235]
[1725518020728,0.181554,56863.0,56862.0,0.36084235]
[1725518020929,0.36,56863.0,56862.0,0.36084235]
[1725518021133,0.36,56863.0,56862.0,0.42239735]
[1725518021326,0.36,56863.0,56862.0,1.54999735]
[1725518021528,0.12,56863.0,56862.0,1.54999735]
[1725518021729,0.119,56863.0,56862.0,1.54999735]
[1725518022538,0.122,56863.0,56862.0,1.54999735]
[1725518023732,0.122,56863.0,56862.0,0.42239735]
[1725518024039,0.122,56863.0,56862.0,1.54999735]
[1725518024534,0.122,56863.0,56862.0,0.94999735]
[1725518025739,0.003,56863.0,56862.0,0.94999735]
[1725518026436,0.003,56863.0,56862.0,0.42239735]
[1725518027543,0.133,56863.0,56862.0,0.42239735]
[1725518030141,0.133,56863.0,56862.0,0.49099735]
[1725518033649,0.133,56863.0,56829.0,0.05235889]
[1725518033650,0.061572,56847.0,56832.0,0.061587]
[1725518033848,0.061572,56847.0,56834.0,0.131285]
[1725518033849,0.3608,56835.0,56834.0,0.131285]
[1725518034040,0.3608,56835.0,56834.0,0.0697]
[1725518034645,0.4408,56835.0,56834.0,0.0697]
[1725518035935,0.4458,56835.0,56834.0,0.0707]
[1725518036139,0.3658,56835.0,56834.0,0.0707]
[1725518037341,0.3698,56835.0,56834.0,1.19854]
[1725518038547,0.001,56835.0,56834.0,1.19854]
[1725518038750,0.3608,56854.0,56835.0,0.52784]
[1725518038954,0.24,56850.0,56842.0,0.061576]
[1725518039146,0.24,56847.0,56842.0,0.061576]
[1725518040352,0.6008,56843.0,56839.0,0.00026391]
[1725518040549,0.24,56840.0,56839.0,0.00026391]
[1725518040948,0.061578,56841.0,56839.0,0.00026391]
[1725518041262,0.24,56840.0,56839.0,0.00026391]
[1725518041753,0.24,56840.0,56839.0,0.00126391]
[1725518042551,0.246,56840.0,56839.0,0.00226391]
[1725518042748,0.678379,56840.0,56839.0,0.00226391]
[1725518042952,1.7446,56840.0,56822.0,0.0674]
[1725518043252,1.7446,56840.0,56816.0,0.3608]
[1725518043253,0.24,56823.0,56819.0,0.3126133]
[1725518043551,0.24,56820.0,56819.0,0.2510113]
[1725518043941,0.24,56820.0,56816.0,0.422405]
[1725518044147,0.23,56820.0,56816.0,0.422405]
[1725518044348,0.23,56820.0,56817.0,0.061604]
[1725518044751,0.23,56820.0,56819.0,0.013]
[1725518044952,0.3608,56824.0,56819.0,0.013]
[1725518045156,0.24,56820.0,56819.0,0.013]
[1725518045752,0.241,56820.0,56819.0,0.013]
[1725518045948,0.001,56820.0,56819.0,0.013]
[1725518046353,0.24,56823.0,56819.0,0.013]
[1725518046557,0.001,56820.0,56819.0,0.02]
[1725518046747,0.002,56820.0,56819.0,0.007]
[1725518046948,0.002,56820.0,56819.0,0.068602]
[1725518047343,0.002,56820.0,56819.0,0.080602]
[1725518047546,0.002,56820.0,56819.0,0.608602]
[1725518047751,0.002,56820.0,56819.0,1.208602]
[1725518048254,0.002,56820.0,56819.0,1.201602]
[1725518048255,0.001,56820.0,56819.0,1.201602]
[1725518048553,0.001,56820.0,56819.0,1.208602]
[1725518049149,0.001,56820.0,56819.0,1.201602]
[1725518049456,0.001,56820.0,56819.0,1.208602]
[1725518052649,0.001,56820.0,56819.0,0.608602]
[1725518053045,0.311,56820.0,56819.0,0.019]
[1725518054458,0.32,56820.0,56819.0,0.001]
[1725518055146,0.313,56820.0,56817.0,0.061604]
[1725518055349,0.321,56820.0,56819.0,0.001]
[1725518057867,0.313,56820.0,56817.0,0.061604]
[1725518058163,0.3608,56818.0,56817.0,0.062604]
[1725518058867,0.3598,56818.0,56817.0,0.061604]
[1725518060665,0.3658,56818.0,56817.0,0.062604]
[1725518063158,0.4858,56818.0,56817.0,0.062604]
[1725518063571,0.126,56818.0,56817.0,0.590604]
[1725518063871,0.126,56818.0,56817.0,1.190604]
[1725518065875,0.126,56818.0,56817.0,0.590604]
[1725518066365,0.126,56818.0,56817.0,0.062604]
[1725518074877,0.7268,56818.0,56817.0,0.001]
[1725518076572,0.4868,56818.0,56817.0,0.001]
[1725518076777,0.4868,56818.0,56817.0,0.241]
[1725518077878,0.4868,56818.0,56817.0,0.302604]
[1725518079578,0.4868,56818.0,56817.0,0.062604]
[1725518079879,0.7268,56818.0,56817.0,0.001]
[1725518080781,0.7268,56818.0,56814.0,0.00026391]
[1725518080977,0.301606,56815.0,56814.0,0.00026391]
[1725518081173,0.411606,56815.0,56814.0,0.00026391]
[1725518082083,0.411606,56815.0,56814.0,0.00326391]
[1725518082581,0.35,56815.0,56814.0,0.00326391]
[1725518084079,0.353,56815.0,56814.0,0.00326391]
[1725518085585,0.113,56815.0,56814.0,0.00326391]
[1725518085774,0.113,56815.0,56814.0,0.06487091]
[1725518088285,0.113,56815.0,56814.0,0.07371503]
[1725518088286,0.003,56815.0,56814.0,0.07371503]
[1725518088588,0.00026391,56825.0,56824.0,0.061596]
[1725518088782,0.00026391,56825.0,56824.0,0.301596]
[1725518089274,0.00026391,56825.0,56824.0,0.367796]
[1725518089674,0.00826391,56825.0,56824.0,0.368796]
[1725518090182,0.01926391,56825.0,56824.0,0.369796]
[1725518098387,0.01926391,56825.0,56824.0,0.063596]
[1725518098585,0.12926391,56825.0,56824.0,0.002]
[1725518102493,0.12926391,56825.0,56824.0,0.063596]
[1725518102994,0.3608,56844.0,56839.0,0.061579]
[1725518103298,0.3608,56844.0,56824.0,1.2028]
[1725518103299,0.7308,56844.0,56833.0,0.24]
[1725518103494,0.3608,56839.0,56833.0,0.24]
[1725518103696,0.4908,56839.0,56833.0,0.24]
[1725518104194,0.4898,56839.0,56833.0,0.24]
[1725518104592,0.4898,56839.0,56837.0,0.24]
[1725518105193,0.4958,56839.0,56837.0,0.24]
[1725518105400,0.006,56839.0,56838.0,0.061581]
[1725518106497,0.006,56839.0,56837.0,0.24]
[1725518106688,0.086,56839.0,56837.0,0.24]
[1725518107093,0.085,56839.0,56837.0,0.241]
[1725518107491,0.085,56839.0,56838.0,0.001]
[1725518108806,0.08,56839.0,56838.0,0.001]
[1725518109000,0.085,56839.0,56838.0,0.242]
[1725518109395,0.085,56839.0,56838.0,0.241]
[1725518110191,0.4458,56839.0,56838.0,0.241]
[1725518110400,0.4458,56839.0,56838.0,0.242]
[1725518111600,0.3658,56839.0,56838.0,0.242]
[1725518113190,0.4758,56839.0,56838.0,0.242]
[1725518116592,0.4758,56839.0,56838.0,0.303581]
[1725518116796,0.115,56839.0,56838.0,1.431381]
[1725518117000,0.43,56860.0,56838.0,1.5636]
[1725518117201,0.02,56860.0,56859.0,0.24]
[1725518118704,0.026,56860.0,56859.0,0.24]
[1725518118895,0.026,56860.0,56859.0,0.301558]
[1725518119493,0.026,56860.0,56859.0,0.302558]
[1725518119897,0.006,56860.0,56859.0,0.302558]
[1725518121101,0.3608,56864.0,56859.0,0.302558]
[1725518121406,0.3608,56864.0,56863.0,0.24]
[1725518121999,0.3608,56864.0,56863.0,0.301554]
[1725518123409,0.00026391,56865.0,56863.0,0.301554]
[1725518123410,0.00026391,56865.0,56864.0,0.061553]
[1725518124305,0.00026391,56865.0,56864.0,0.24]
[1725518125001,0.00026391,56865.0,56864.0,0.241]
[1725518125810,0.00026391,56865.0,56864.0,0.242]
[1725518126404,0.00026391,56865.0,56864.0,0.303553]
[1725518131403,0.3291,56876.0,56875.0,0.061541]
[1725518131603,0.00240001,56881.0,56877.0,0.061539]
[1725518131808,0.3908,56879.0,56878.0,0.24]
[1725518132208,0.979778,56879.0,56875.0,0.24]
[1725518132515,0.452338,56879.0,56875.0,0.24]
[1725518132700,0.001,56876.0,56875.0,0.002]
[1725518132904,0.031,56876.0,56875.0,0.242]
[1725518133912,0.031,56876.0,56875.0,0.303541]
[1725518134209,0.03,56876.0,56875.0,0.302541]
[1725518134406,0.029,56876.0,56875.0,0.302541]
[1725518135013,0.03,56876.0,56875.0,0.303541]
[1725518137918,0.001,56876.0,56875.0,0.303541]
[1725518138509,0.001,56876.0,56875.0,0.831021]
[1725518139007,0.001,56876.0,56875.0,0.303541]
[1725518141217,0.3608,56879.0,56878.0,0.061538]
[1725518141419,0.3608,56879.0,56878.0,0.301538]
[1725518142510,0.3608,56879.0,56875.0,0.002]
[1725518142714,0.30154,56876.0,56875.0,0.001]
[1725518142905,1.53802,56876.0,56875.0,0.001]
[1725518143113,1.43832,56876.0,56875.0,0.001]
[1725518143314,1.43732,56876.0,56871.0,0.24026391]
[1725518143615,0.30984,56876.0,56871.0,0.24026391]
[1725518143820,0.3608,56872.0,56871.0,0.24026391]
[1725518144018,0.4708,56872.0,56871.0,0.24026391]
[1725518144316,0.4698,56872.0,56871.0,0.24026391]
[1725518144617,0.4688,56872.0,56871.0,0.24026391]
[1725518145217,0.4718,56872.0,56871.0,0.24126391]
[1725518145915,0.4738,56872.0,56871.0,0.24226391]
[1725518148621,0.115,56872.0,56871.0,0.30380891]
[1725518149137,0.005,56872.0,56871.0,0.30380891]
[1725518150825,0.005,56872.0,56871.0,0.66460891]
[1725518156530,0.136544,56872.0,56871.0,0.36306391]
[1725518157731,0.136544,56872.0,56871.0,0.60306391]
[1725518159433,0.136544,56872.0,56861.0,0.24]
[1725518159434,0.061551,56866.0,56861.0,0.24]
[1725518159625,0.181551,56866.0,56864.0,0.24]
[1725518160626,0.12,56866.0,56864.0,0.24]
[1725518161829,0.122,56866.0,56864.0,0.24]
[1725518162231,0.125,56866.0,56864.0,0.24]
[1725518162636,0.061552,56865.0,56861.0,0.24]
[1725518162840,0.061552,56865.0,56839.0,0.061579]
[1725518162841,0.6008,56862.0,56848.0,0.24]
[1725518163134,0.6008,56862.0,56847.0,0.3608]
[1725518163135,0.3598,56853.0,56847.0,0.3608]
[1725518163334,0.24,56850.0,56847.0,0.3608]
[1725518163535,0.06307321,56851.0,56847.0,0.3608]
[1725518163727,0.12,56851.0,56847.0,0.3608]
[1725518163931,0.18307321,56851.0,56847.0,0.3608]
[1725518164436,0.6008,56848.0,56843.0,0.00026391]
[1725518164628,0.06307321,56847.0,56843.0,0.00026391]
[1725518164830,0.17307321,56847.0,56843.0,0.00026391]
[1725518165135,0.14907321,56847.0,56843.0,0.00026391]
[1725518165336,0.301575,56844.0,56843.0,0.00026391]
[1725518165640,0.411575,56844.0,56843.0,0.01026391]
[1725518165838,0.171575,56844.0,56843.0,0.01026391]
[1725518166031,0.171575,56844.0,56843.0,0.01426391]
[1725518166230,0.171575,56844.0,56843.0,0.00426391]
[1725518166428,0.171575,56844.0,56843.0,0.01426391]
[1725518166927,0.171575,56844.0,56843.0,0.01026391]
[1725518166928,0.175575,56844.0,56843.0,0.01026391]
[1725518168140,0.175575,56844.0,56843.0,0.00126391]
[1725518170534,1.543335,56844.0,56843.0,0.00126391]
[1725518170936,0.114,56844.0,56843.0,0.00126391]
[1725518171137,0.004,56844.0,56843.0,0.06283991]
[1725518171842,0.004,56844.0,56843.0,0.13423991]
[1725518173845,0.004,56844.0,56843.0,0.06283991]
[1725518174542,0.124,56844.0,56843.0,0.06283991]
[1725518176245,1.49176,56844.0,56843.0,0.00126391]
[1725518176445,1.553335,56844.0,56843.0,0.00126391]
[1725518180041,0.953335,56844.0,56843.0,0.00126391]
[1725518180446,1.553335,56844.0,56843.0,0.00126391]
[1725518182150,0.713335,56844.0,56843.0,0.00126391]
[1725518182346,0.124,56844.0,56843.0,0.06283991]
[1725518182646,0.124,56844.0,56843.0,0.30283991]
[1725518183147,0.124,56844.0,56843.0,0.06283991]
[1725518184746,0.425575,56844.0,56843.0,0.00126391]
[1725518185246,1.553335,56844.0,56843.0,0.00126391]
[1725518189843,0.953335,56844.0,56843.0,0.00126391]
[1725518190352,1.553335,56844.0,56843.0,0.00126391]
[1725518191453,0.953335,56844.0,56843.0,0.00126391]
[1725518191955,0.18710738,56844.0,56843.0,0.30283991]
[1725518192156,0.18710738,56844.0,56843.0,0.00126391]
[1725518192157,0.185575,56844.0,56843.0,0.00126391]
[1725518192356,0.24868238,56844.0,56843.0,0.00126391]
[1725518192656,0.185575,56844.0,56843.0,0.00126391]
[1725518193151,0.713335,56844.0,56843.0,0.00126391]
[1725518196058,1.313335,56844.0,56843.0,0.00126391]
[1725518196358,1.43801653,56844.0,56843.0,0.00126391]
[1725518196557,1.43801653,56844.0,56829.0,0.0744]
[1725518196558,0.06159,56830.0,56829.0,0.0744]
[1725518196760,0.41159,56830.0,56829.0,0.0744]
[1725518197959,0.41859,56830.0,56829.0,0.0854]
[1725518198467,0.17859,56830.0,56829.0,0.0854]
[1725518199551,0.17759,56830.0,56829.0,0.0754]
[1725518199759,0.18859,56830.0,56829.0,0.0764]
[1725518199954,0.18859,56830.0,56829.0,0.137991]
[1725518200954,0.127,56830.0,56829.0,0.377991]
[1725518203459,0.017,56830.0,56829.0,0.377991]
[1725518204064,0.327,56830.0,56829.0,0.0764]
[1725518204373,0.327,56830.0,56802.0,0.061619]
[1725518204374,0.061602,56819.0,56817.0,0.00888125]
[1725518204568,0.24,56818.0,56814.0,0.1426]
[1725518204777,0.3608,56816.0,56814.0,0.1426]
[1725518205062,0.4808,56816.0,56814.0,0.1426]